bitfinex/quotes_ETHUSD_20240703
["timestamp","ask_amount","ask_price","bid_price","bid_amount"]
[1720041046698,0.99187504,3282.7,3282.5,3.10536538]
[1720041051169,0.02,3283.0,3282.5,3.10536538]
[1720041051170,0.02,3283.0,3282.7,3.04621]
[1720041051372,0.99187504,3282.8,3282.7,3.04621]
[1720041051870,0.99187504,3282.8,3282.7,3.10509145]
[1720041052072,0.99187504,3282.8,3282.7,0.05888145]
[1720041052275,0.99187504,3282.8,3282.7,3.10515145]
[1720041052579,0.99187504,3282.8,3282.7,3.10483569]
[1720041056009,0.99187504,3282.8,3282.7,0.05856569]
[1720041056200,0.99187504,3282.8,3282.6,3.04634]
[1720041056599,0.99187504,3282.8,3282.7,0.0566135]
[1720041057324,1.01187504,3283.0,3282.9,3.04608]
[1720041057700,1.01187504,3283.0,3282.9,3.10257362]
[1720041058119,0.02,3283.0,3282.9,3.10257362]
[1720041058520,1.01187504,3283.0,3282.9,3.10257362]
[1720041060034,1.01187504,3283.0,3282.9,0.05649362]
[1720041060625,3.3698,3283.0,3282.0,0.991875]
[1720041060933,0.02,3283.0,3282.6,3.04636]
[1720041061119,0.99187504,3282.8,3282.7,3.04624]
[1720041061311,0.02,3283.0,3282.7,3.04624]
[1720041061508,0.99187504,3282.9,3282.7,3.04624]
[1720041061707,0.99187504,3282.9,3282.5,3.04643]
[1720041061708,0.99187504,3282.7,3282.3,3.04659]
[1720041061910,0.03484924,3282.6,3282.0,3.0]
[1720041062110,0.99187504,3282.1,3282.0,6.04692]
[1720041062301,0.03484924,3282.6,3282.0,6.04692]
[1720041062658,0.03484924,3282.6,3281.8,4.648354]
[1720041062659,0.99187504,3282.1,3281.8,4.038925]
[1720041062802,0.99187504,3281.9,3281.7,3.04711]
[1720041063135,0.03484924,3282.4,3281.8,3.04705]
[1720041063336,0.99187504,3282.1,3281.8,3.04705]
[1720041063734,0.99187504,3281.9,3281.8,3.04705]
[1720041063932,0.03484924,3282.4,3281.6,3.04721]
[1720041064141,1.68022635,3282.4,3281.8,3.04709]
[1720041064335,1.68022635,3282.4,3281.9,3.0]
[1720041064336,0.99187504,3282.0,3281.9,3.0]
[1720041064647,0.99187504,3282.0,3281.9,0.0545667]
[1720041065136,0.99187504,3281.8,3281.6,3.0]
[1720041066109,0.03484924,3282.2,3281.1,1.5202073]
[1720041066110,0.99187504,3281.6,3281.1,1.5202073]
[1720041066316,0.99187504,3281.1,3280.6,4.463814]
[1720041066622,0.03484924,3281.5,3280.7,3.04811]
[1720041067043,0.03484924,3281.5,3280.8,3.04801]
[1720041067244,0.99187504,3280.9,3280.8,3.04801]
[1720041068235,1.02672428,3281.5,3281.1,3.04774]
[1720041068419,0.99187504,3281.3,3281.1,3.04774]
[1720041068941,0.03484924,3281.8,3281.1,3.04774]
[1720041069121,0.99187504,3281.5,3281.1,3.04774]
[1720041069456,0.99187504,3281.7,3281.5,3.04736]
[1720041070150,0.99187504,3282.0,3281.5,3.04731]
[1720041070327,0.99187504,3281.5,3281.3,3.0475]
[1720041070533,0.03484924,3281.4,3280.8,3.957626]
[1720041070781,4.03912504,3281.7,3280.9,3.0]
[1720041070983,7.1608869,3281.6,3280.7,3.0]
[1720041071263,3.68197766,3281.5,3280.7,3.0]
[1720041071470,0.75094193,3281.4,3280.7,3.0]
[1720041071621,1.38552959,3281.4,3280.7,3.0]
[1720041072120,0.99187504,3281.1,3279.9,3.66764651]
[1720041072321,3.7173169,3281.0,3280.1,3.04868]
[1720041072537,0.63458766,3280.8,3280.2,3.04853]
[1720041072739,0.03484924,3280.7,3279.9,3.36735651]
[1720041073046,1.02672428,3280.7,3280.0,3.04875]
[1720041073227,1.66131194,3280.7,3280.0,3.04875]
[1720041073563,0.6368474,3280.5,3280.0,3.04875]
[1720041073718,0.03484924,3280.4,3280.0,3.04875]
[1720041073920,0.99187504,3280.2,3280.1,3.0]
[1720041074654,0.99187504,3280.0,3279.9,0.31854651]
[1720041075180,0.99187504,3279.8,3279.5,3.04923]
[1720041075322,0.99187504,3279.8,3279.5,3.36797579]
[1720041075718,0.99187504,3279.8,3279.5,0.31874579]
[1720041076368,0.99187504,3279.8,3279.5,3.31874579]
[1720041076659,0.6368474,3280.1,3279.9,3.04886]
[1720041076952,0.99187504,3280.1,3279.9,3.04886]
[1720041077452,0.67169664,3280.4,3280.0,3.04877]
[1720041077617,1.62872244,3280.4,3279.9,3.04886]
[1720041077822,0.99187504,3280.2,3279.9,3.04886]
[1720041078324,0.99187504,3279.9,3279.8,3.04896]
[1720041078528,0.99187504,3279.9,3279.8,6.04896]
[1720041078832,0.03484924,3280.3,3279.9,3.04884]
[1720041079051,0.6368474,3280.4,3280.2,3.04851]
[1720041079237,0.6368474,3280.6,3280.3,3.04842]
[1720041079437,0.99187504,3280.7,3280.3,3.04842]
[1720041079438,0.99187504,3280.5,3280.3,3.04842]
[1720041079732,0.99187504,3280.5,3280.4,0.05081971]
[1720041081434,0.99187504,3280.5,3280.3,2.83904171]
[1720041081662,0.99187504,3280.5,3280.4,0.04912572]
[1720041083183,4.22057504,3280.5,3280.4,0.04912572]
[1720041083331,5.38149885,3280.5,3279.9,3.0]
[1720041083533,5.38149885,3280.5,3280.0,0.04912572]
[1720041083843,4.04055504,3280.1,3280.0,0.04912572]
[1720041084039,4.07540428,3280.1,3280.0,0.04912572]
[1720041084353,4.07540428,3280.1,3279.5,0.31874579]
[1720041084354,1.17376475,3280.1,3279.5,0.31874579]
[1720041084540,0.99187504,3279.9,3279.5,0.31874579]
[1720041084732,1.17376475,3280.1,3279.5,0.31874579]
[1720041084733,0.03484924,3279.8,3279.6,0.04742818]
[1720041085059,4.18760551,3280.1,3279.6,0.04742818]
[1720041085060,0.03484924,3279.9,3279.6,0.04742818]
[1720041085227,0.99187504,3279.7,3279.6,0.04742818]
[1720041087465,0.03484924,3280.1,3279.6,3.09657818]
[1720041087666,0.03484924,3280.1,3279.7,3.04905]
[1720041087829,0.99187504,3279.7,3279.5,3.36797579]
[1720041088030,0.03484924,3280.1,3279.5,3.36797579]
[1720041088230,0.16622633,3280.1,3279.5,3.36797579]
[1720041088472,0.03484924,3280.0,3279.5,3.36797579]
[1720041089056,0.03484924,3280.0,3279.6,0.04791634]
[1720041089364,0.03484924,3280.2,3279.6,0.04791634]
[1720041089762,0.99187504,3279.7,3279.6,0.04791634]
[1720041092794,7.51072504,3279.7,3279.6,0.04791634]
[1720041093082,0.99187504,3279.1,3279.0,3.0]
[1720041093243,0.99187504,3279.3,3279.2,0.31878113]
[1720041093453,0.99187504,3279.5,3279.2,3.31878113]
[1720041093678,0.99187504,3279.3,3279.2,3.31878113]
[1720041093861,0.99187504,3279.3,3279.2,0.31878113]
[1720041094085,1.02672428,3279.3,3279.2,0.31878113]
[1720041094401,1.73925871,3279.3,3279.2,0.31878113]
[1720041094546,1.02672428,3279.3,3279.2,0.36525753]
[1720041094993,0.99187504,3279.3,3279.2,0.36525753]
[1720041096059,1.02672428,3279.3,3279.2,0.36525753]
[1720041096201,1.02672428,3279.3,3279.2,0.0464764]
[1720041096372,0.99187504,3279.0,3278.6,0.31882345]
[1720041096576,0.03484924,3278.9,3278.7,0.0464764]
[1720041097313,0.99187504,3279.0,3278.8,3.04989]
[1720041097491,0.99187504,3279.0,3278.9,3.0498]
[1720041097675,0.99187504,3279.0,3278.9,3.09664466]
[1720041099709,0.99187504,3279.0,3278.9,6.14644466]
[1720041099925,0.99187504,3279.0,3278.9,3.09664466]
[1720041100124,1.02672428,3279.7,3279.0,3.2936]
[1720041100312,0.99187504,3279.7,3279.6,6.0983]
[1720041100819,0.99187504,3279.7,3279.6,6.1450806]
[1720041102490,0.99187504,3279.7,3279.6,3.0959306]
[1720041102913,0.99187504,3279.7,3279.6,0.0467806]
[1720041103302,0.99187504,3279.7,3279.4,3.04933]
[1720041103621,0.99187504,3279.7,3279.4,3.04925]
[1720041103830,0.63407139,3280.3,3279.4,3.04925]
[1720041103831,0.03484924,3280.2,3279.5,0.04652042]
[1720041104122,0.99187504,3280.3,3280.0,3.04878]
[1720041104324,0.99187504,3280.3,3280.2,3.04859]
[1720041104888,0.99187504,3280.3,3280.2,3.09512243]
[1720041105828,0.99187504,3280.7,3280.4,3.04839]
[1720041106001,0.99187504,3280.9,3280.5,3.04831]
[1720041106325,0.99187504,3280.9,3280.7,3.04809]
[1720041106729,0.99187504,3280.9,3280.8,0.04588821]
[1720041108426,1.62765834,3280.9,3280.8,0.04588821]
[1720041108626,1.62765834,3280.9,3280.6,3.04821]
[1720041108627,0.99187504,3280.7,3280.6,3.04821]
[1720041109011,0.99187504,3280.9,3280.7,3.04808]
[1720041109439,1.62765834,3280.9,3280.7,3.04808]
[1720041109640,1.62765834,3280.9,3280.8,0.04579621]
[1720041110120,0.99187504,3280.9,3280.8,0.04579621]
[1720041110440,1.62765834,3280.9,3280.8,0.04579621]
[1720041110636,1.62853486,3280.9,3280.8,0.04579621]
[1720041111437,0.95498974,3281.0,3280.8,3.09380621]
[1720041111750,0.63688943,3281.0,3280.8,3.09380621]
[1720041111955,1.62876447,3281.1,3280.8,3.09380621]
[1720041112316,0.63688943,3281.0,3280.9,3.04785]
[1720041112665,0.67173867,3281.0,3280.9,0.04574821]
[1720041113028,1.66361371,3281.0,3280.9,0.04574821]
[1720041113250,0.99187504,3280.7,3280.4,3.04836]
[1720041113425,0.99187504,3280.7,3280.3,3.04845]
[1720041113637,0.99187504,3280.7,3280.5,3.04824]
[1720041113935,1.66361371,3280.9,3280.6,3.04822]
[1720041114112,0.99187504,3280.7,3280.6,3.04822]
[1720041114310,0.99187504,3280.7,3280.6,2.75103]
[1720041114546,0.63688943,3280.8,3280.7,3.04812]
[1720041114745,0.6371966,3280.9,3280.7,3.04812]
[1720041114945,0.6371966,3280.9,3280.8,3.04803]
[1720041115335,0.6371966,3280.9,3280.8,6.09606]
[1720041115652,0.6371966,3281.0,3280.9,6.09588]
[1720041116173,1.94686478,3281.1,3280.9,3.04794]
[1720041116347,0.95498974,3281.0,3280.9,3.04794]
[1720041116911,1.38994912,3281.0,3280.5,3.04827]
[1720041117152,1.62930279,3280.7,3280.3,3.04841]
[1720041117327,0.63742775,3280.6,3280.5,3.04831]
[1720041118316,0.63742775,3280.6,3280.3,3.04841]
[1720041118517,0.63742775,3280.5,3280.4,3.0]
[1720041118755,0.03484924,3280.5,3279.8,1.220654]
[1720041118986,0.63763677,3280.0,3279.8,1.220654]
[1720041119262,0.67248601,3279.9,3279.8,1.220654]
[1720041119429,0.67248601,3279.9,3279.5,6.09837]
[1720041119430,0.98983898,3279.9,3279.5,6.09837]
[1720041119619,0.98983898,3279.9,3279.5,3.04918]
[1720041119620,1.62961122,3279.6,3279.5,3.04918]
[1720041120333,0.99187504,3279.6,3279.5,6.04918]
[1720041120532,1.62961122,3279.6,3279.5,6.04918]
[1720041121442,0.99187504,3279.6,3279.5,6.04918]
[1720041121852,1.62961122,3279.6,3279.5,6.04918]
[1720041122025,0.99187504,3279.6,3279.5,6.04918]
[1720041122226,0.63771468,3279.7,3279.6,3.04915]
[1720041122597,1.27542936,3280.0,3279.6,3.04915]
[1720041122598,0.95657202,3280.1,3279.8,3.04896]
[1720041122871,0.637651,3280.1,3279.9,2.06]
[1720041123079,0.637651,3280.1,3280.0,3.04878]
[1720041123224,1.94835154,3280.2,3279.8,3.0489]
[1720041123425,0.63763778,3279.9,3279.8,3.0489]
[1720041123625,0.63763778,3279.9,3279.8,6.0489]
[1720041123861,0.63763778,3279.9,3279.8,3.0]
[1720041124168,0.63763778,3279.9,3279.5,2.06]
[1720041124169,0.99187504,3279.7,3279.6,3.04915]
[1720041124483,1.62957761,3279.7,3279.6,6.04915]
[1720041124676,0.99187504,3279.7,3279.6,6.09468221]
[1720041125959,0.95655385,3279.8,3279.6,9.14383221]
[1720041126178,0.99187504,3279.7,3279.6,6.09468221]
[1720041126357,1.34909737,3279.7,3279.6,0.04553221]
[1720041126703,0.99187504,3279.2,3278.8,12.38986]
[1720041126994,0.99187504,3279.2,3278.9,3.04977]
[1720041127279,1.98349924,3279.2,3278.6,2.06]
[1720041127443,1.98349924,3279.2,3278.6,5.10999]
[1720041127444,1.62971465,3279.0,3278.6,5.10999]
[1720041127642,0.99187504,3278.8,3278.7,3.68698632]
[1720041127865,0.99187504,3278.8,3278.7,0.63702632]
[1720041128035,0.99187504,3278.8,3278.7,0.31880957]
[1720041128843,1.62971465,3278.8,3278.0,0.29742673]
[1720041129050,0.63783961,3278.6,3278.2,3.05044]
[1720041129371,0.63783961,3278.6,3277.5,10.33107]
[1720041129372,0.63783961,3278.6,3278.3,6.35647]
[1720041129737,1.62971465,3278.5,3278.4,3.05026]
[1720041130181,0.63783961,3278.5,3278.4,3.05026]
[1720041130343,1.62971465,3278.5,3278.4,3.05026]
[1720041130541,1.62971465,3278.5,3278.4,6.05026]
[1720041130940,1.62971465,3278.5,3278.4,3.0]
[1720041131141,1.62971465,3278.5,3278.2,3.05045]
[1720041131142,0.63783961,3278.5,3278.1,0.31869473]
[1720041131358,0.63783961,3278.3,3278.1,0.31869473]
[1720041131645,0.63783961,3278.3,3278.1,3.36916473]
[1720041131844,0.63783961,3278.2,3278.1,3.36916473]
[1720041132247,0.03484924,3278.2,3278.1,0.31869473]
[1720041132447,0.67268885,3278.2,3278.1,0.31869473]
[1720041132999,0.67226055,3278.2,3278.1,0.31869473]
[1720041133283,0.67226457,3278.2,3278.1,0.31869473]
[1720041134193,0.63741533,3278.3,3278.1,3.36923473]
[1720041134387,0.99187504,3278.2,3278.1,3.36923473]
[1720041135822,0.6370209,3278.6,3278.2,3.05039]
[1720041136140,1.62889594,3278.9,3278.4,2.06]
[1720041136442,0.99187504,3278.7,3278.4,5.11024]
[1720041136740,1.62889594,3278.9,3278.6,3.05006]
[1720041136892,0.99187504,3278.7,3278.6,3.05006]
[1720041137832,1.62889594,3278.9,3278.6,6.10012]
[1720041138032,0.99187504,3278.7,3278.6,6.10012]
[1720041138390,0.6370209,3278.9,3278.8,3.04989]
[1720041138586,1.62889594,3279.1,3278.6,0.816012]
[1720041138789,1.62889594,3279.1,3279.0,3.04971]
[1720041139203,0.99187504,3279.1,3279.0,3.04971]
[1720041139832,0.99187504,3279.1,3279.0,3.09376422]
[1720041141740,0.99187504,3279.1,3279.0,0.04405422]
[1720041142040,3.04996,3278.8,3278.1,0.31869473]
[1720041142234,0.99187504,3278.3,3278.2,0.04405422]
[1720041142526,1.02672428,3278.3,3278.2,0.04405422]
[1720041142723,0.99187504,3278.3,3278.2,0.04405422]
[1720041142941,1.62854303,3278.5,3278.2,3.05043]
[1720041143227,0.03484924,3278.7,3278.3,3.05035]
[1720041143432,0.99187504,3278.5,3278.4,0.0442104]
[1720041144530,0.67149817,3278.7,3278.4,0.0442104]
[1720041144531,1.66337321,3278.7,3278.4,0.0442104]
[1720041144725,0.67149817,3278.7,3278.4,0.0442104]
[1720041145033,0.67149817,3278.8,3278.4,3.0944604]
[1720041145236,0.67149817,3278.8,3278.4,0.0442104]
[1720041145451,1.66337321,3278.9,3278.5,3.05016]
[1720041145593,1.62852397,3278.9,3278.6,3.09421831]
[1720041145936,1.62852397,3278.9,3278.7,3.04997]
[1720041146232,0.99187504,3279.2,3278.9,6.09951]
[1720041146527,0.99187504,3279.2,3279.0,0.04409026]
[1720041147128,0.99187504,3279.2,3279.0,3.09377026]
[1720041147284,1.66309,3279.2,3279.0,0.04409026]
[1720041147828,1.66309,3279.2,3278.7,3.04992]
[1720041147829,0.99187504,3278.8,3278.7,6.0999]
[1720041148338,0.99187504,3278.8,3278.5,3.05015]
[1720041148536,0.99187504,3278.6,3278.5,3.05015]
[1720041148728,0.99187504,3278.6,3278.5,6.05015]
[1720041150300,4.23542495,3279.1,3278.7,3.04991]
[1720041150301,1.62824076,3279.1,3278.7,3.04991]
[1720041150511,1.62824076,3279.1,3279.0,3.04971]
[1720041150512,0.99187504,3279.1,3279.0,3.04971]
[1720041150995,0.99187504,3279.1,3278.8,3.04981]
[1720041151201,0.99187504,3278.8,3278.7,3.04993]
[1720041152633,0.99187504,3278.8,3278.7,6.09991]
[1720041153023,0.99187504,3279.0,3278.8,3.04988]
[1720041153650,0.03484924,3278.9,3278.5,3.0]
[1720041153947,0.63636572,3278.8,3278.1,3.05053]
[1720041154103,1.02672428,3278.7,3278.6,0.04407826]
[1720041154452,0.99187504,3278.3,3278.2,3.0]
[1720041154736,0.99187504,3278.3,3278.2,0.04407826]
[1720041155729,1.15818404,3278.3,3278.2,0.04407826]
[1720041156335,0.99187504,3278.0,3277.9,3.0]
[1720041156546,0.99187504,3277.8,3277.7,0.31872509]
[1720041158257,1.62824076,3277.8,3277.7,0.31872509]
[1720041158456,0.99187504,3277.8,3277.7,0.31872509]
[1720041158721,0.99187504,3277.6,3277.4,6.10224]
[1720041158951,0.99187504,3277.6,3277.5,3.0]
[1720041159356,0.99187504,3277.6,3277.5,6.0511]
[1720041159722,0.99187504,3277.9,3277.8,3.05082]
[1720041160575,0.99187504,3277.7,3277.6,3.05094]
[1720041163033,0.99187504,3277.7,3277.5,3.0]
[1720041163361,0.95539725,3278.0,3277.4,0.3187832]
[1720041163362,0.6369315,3277.6,3277.4,0.3187832]
[1720041163560,0.6369315,3277.5,3277.4,0.3187832]
[1720041163922,1.62880654,3277.5,3277.4,0.36323793]
[1720041164128,1.62880654,3277.5,3277.4,3.41442793]
[1720041164129,0.99187504,3277.5,3277.4,3.41442793]
[1720041165149,0.6369315,3277.6,3277.4,3.41442793]
[1720041165351,0.99187504,3277.6,3277.5,3.0511]
[1720041165556,1.62880654,3277.8,3277.5,0.64655379]
[1720041165759,0.6369315,3278.0,3277.8,3.05082]
[1720041165937,0.6369315,3278.0,3277.9,3.05073]
[1720041166139,1.62880654,3278.1,3278.0,3.05064]
[1720041166531,0.6369315,3278.1,3278.0,8.77586247]
[1720041166776,0.6369315,3278.4,3278.2,3.05045]
[1720041166975,0.95539725,3278.6,3278.4,3.05026]
[1720041166976,0.6369315,3278.5,3278.4,3.05026]
[1720041167286,1.62880654,3278.6,3278.4,3.09471473]
[1720041167479,0.6369315,3278.5,3278.4,3.09471473]
[1720041167635,0.6369315,3278.5,3278.4,6.14497473]
[1720041167832,0.6369315,3278.5,3278.4,7.0645142]
[1720041168029,0.95713422,3278.7,3278.6,3.05007]
[1720041168234,1.27617328,3278.8,3278.7,3.04998]
[1720041168465,1.27617328,3278.8,3278.7,3.09443473]
[1720041168870,0.95734554,3278.9,3278.8,6.09978]
[1720041169170,0.63819589,3278.9,3278.8,7.01920947]
[1720041169462,0.63819589,3278.9,3278.8,7.0636642]
[1720041170467,0.95734554,3279.0,3278.9,6.0996]
[1720041170664,0.95734554,3279.0,3278.9,6.14399467]
[1720041171298,1.27713157,3279.1,3279.0,3.04971]
[1720041171448,0.99187504,3279.2,3279.1,6.09922]
[1720041171650,0.99187504,3279.2,3279.1,6.1435386]
[1720041171651,3.11425978,3279.2,3279.1,6.1435386]
[1720041171845,0.99187504,3279.2,3279.1,6.1435386]
[1720041172245,2.5886428,3279.2,3279.1,6.1435386]
[1720041172681,4.71102754,3279.2,3279.1,6.1435386]
[1720041174185,3.7191525,3279.2,3279.1,13.35750246]
[1720041174386,2.12220221,3279.2,3279.1,9.75789246]
[1720041174686,1.27762633,3279.3,3279.2,3.04952]
[1720041174891,3.39987285,3279.3,3279.2,3.04952]
[1720041175056,3.39987285,3279.3,3279.2,3.09325794]
[1720041175975,4.39174789,3279.3,3279.2,3.09325794]
[1720041176184,3.11412156,3279.3,3279.2,6.14277794]
[1720041176348,2.12224652,3279.3,3279.2,6.14277794]
[1720041176879,0.95783875,3279.4,3279.3,6.09886]
[1720041177083,0.95783875,3279.4,3279.3,7.01311979]
[1720041177402,0.6385135,3279.4,3279.3,7.00737569]
[1720041177686,0.95783875,3279.6,3279.5,6.09848]
[1720041178080,0.95783875,3279.6,3279.5,6.14208986]
[1720041178393,1.27762633,3279.8,3279.5,6.14208986]
[1720041178394,1.94971379,3279.7,3279.6,6.0983]
[1720041178700,2.26950137,3279.9,3279.7,3.04905]
[1720041178860,3.39954206,3279.8,3279.7,3.04905]
[1720041179388,3.39954206,3279.8,3279.7,3.09259982]
[1720041180057,2.12191573,3279.8,3279.7,3.09259982]
[1720041180386,3.39954206,3279.8,3279.7,6.14164982]
[1720041180806,2.26950137,3279.9,3279.8,3.04896]
[1720041180958,4.39142236,3279.9,3279.8,3.04896]
[1720041181313,1.59509798,3280.0,3279.8,3.7066658]
[1720041181314,0.63792913,3280.0,3279.8,3.7066658]
[1720041181600,0.63792913,3280.1,3279.9,3.0]
[1720041181883,0.63792913,3280.1,3280.0,6.09756]
[1720041182070,0.63792913,3280.1,3280.0,6.14110982]
[1720041182399,1.62980417,3280.2,3280.1,6.09736]
[1720041182964,1.62980417,3280.2,3280.1,6.14090982]
[1720041183587,1.62980417,3280.4,3280.1,0.53534928]
[1720041183755,1.62980417,3280.4,3280.1,0.04354982]
[1720041183954,1.62980417,3280.4,3279.9,6.04883]
[1720041183955,0.63792913,3280.5,3280.4,6.0968]
[1720041184283,0.6369383,3280.5,3280.4,6.0968]
[1720041184653,0.6369383,3280.5,3280.4,6.14034982]
[1720041185099,1.62881334,3280.6,3280.5,6.09662]
[1720041185813,1.62881334,3280.6,3280.5,6.14016982]
[1720041186373,0.99187504,3280.6,3280.5,6.14016982]
[1720041187855,0.99187504,3280.6,3280.5,3.09185982]
[1720041188489,0.6369383,3280.8,3280.7,6.09624]
[1720041188652,1.62881334,3281.0,3280.9,3.04794]
[1720041188868,0.99187504,3281.0,3280.9,3.04794]
[1720041189104,0.99187504,3281.0,3280.9,3.09074955]
[1720041192791,0.99187504,3281.0,3280.9,6.13868955]
[1720041193808,0.99187504,3281.0,3280.9,3.09074955]
[1720041194867,0.99187504,3281.2,3281.0,3.04778]
[1720041195067,0.99187504,3281.2,3281.1,3.04775]
[1720041195318,0.99187504,3281.2,3281.1,3.09055155]
[1720041195611,1.02672428,3281.5,3281.4,3.04747]
[1720041195831,0.99187504,3281.5,3281.4,3.04747]
[1720041196327,0.99187504,3281.5,3281.4,3.09027155]
[1720041200543,0.99187504,3281.5,3281.4,2.42109255]
[1720041200701,1.44049178,3281.5,3281.4,0.04280155]
[1720041201019,1.44049178,3281.5,3281.0,3.04779]
[1720041201020,1.44049178,3281.5,3281.0,3.04778]
[1720041201317,1.44049178,3281.5,3281.1,3.0477]
[1720041201318,0.99187504,3281.2,3281.1,3.0477]
[1720041201694,0.99187504,3281.2,3281.1,3.09019762]
[1720041201895,0.99187504,3281.2,3281.1,6.13794762]
[1720041203299,0.99187504,3281.6,3281.1,0.65629238]
[1720041203640,0.99187504,3281.6,3281.5,8.15276]
[1720041203938,0.99187504,3281.6,3281.5,8.19493369]
[1720041205007,0.99187504,3281.6,3281.5,6.13693369]
[1720041208931,0.99187504,3281.6,3281.5,6.46193846]
[1720041209133,0.99187504,3281.8,3281.7,6.0944]
[1720041209764,0.99187504,3281.8,3281.7,6.13657369]
[1720041209968,0.99187504,3282.0,3281.9,3.04701]
[1720041210666,0.99187504,3282.0,3281.9,3.08918369]
[1720041211673,0.99187504,3282.0,3281.9,6.13619369]
[1720041211836,0.99187504,3282.0,3281.9,3.08918369]
[1720041212455,0.99187504,3282.0,3281.9,0.04217369]
[1720041212688,1.40043747,3282.0,3281.9,0.04217369]
[1720041212839,0.99187504,3281.5,3281.4,3.04741]
[1720041214274,0.99187504,3281.1,3281.0,5.058]
[1720041214483,0.99187504,3281.1,3281.0,3.0]
[1720041214638,0.99187504,3281.1,3281.0,3.04178193]
[1720041214843,0.99187504,3281.1,3281.0,0.04178193]
[1720041215045,1.49423656,3281.1,3281.0,0.04178193]
[1720041215368,0.99187504,3280.6,3280.4,3.04835]
[1720041215939,0.99187504,3280.6,3280.5,3.04831]
[1720041216151,0.99187504,3280.6,3280.5,6.09662]
[1720041216350,0.99187504,3281.0,3280.9,3.04794]
[1720041219287,1.62851262,3281.0,3280.9,3.04794]
[1720041220362,0.63741334,3281.0,3280.9,3.04794]
[1720041220558,0.63765338,3281.0,3280.9,6.657544]
[1720041220757,1.62952842,3281.2,3281.1,3.04775]
[1720041220979,0.99187504,3281.2,3281.1,3.04775]
[1720041221288,3.1130153,3281.2,3281.1,3.04775]
[1720041221579,1.94872796,3281.2,3281.1,3.04775]
[1720041222108,1.6297375,3281.2,3281.1,6.0955]
[1720041222266,0.99187504,3281.0,3280.9,6.04789]
[1720041222597,1.94872796,3281.0,3280.9,6.04789]
[1720041223080,1.94920863,3281.0,3280.9,6.04789]
[1720041223284,1.94920863,3281.0,3280.9,3.0]
[1720041223488,2.2671818,3281.0,3280.9,3.0]
[1720041223660,4.38839087,3281.0,3280.9,3.0]
[1720041223865,4.42324011,3281.0,3280.9,3.0]
[1720041224595,3.14793335,3281.0,3280.9,3.0]
[1720041224766,4.74351489,3281.0,3280.9,3.0]
[1720041224967,4.70866565,3281.0,3280.9,3.0]
[1720041225168,3.71679061,3281.0,3280.9,9.826639]
[1720041225377,0.95833108,3281.1,3281.0,3.04778]
[1720041225577,1.27777478,3281.2,3281.1,3.04775]
[1720041225798,3.3988378,3281.2,3281.1,6.0955]
[1720041226004,3.39881102,3281.2,3281.1,6.0955]
[1720041226390,3.39885481,3281.2,3281.1,6.0955]
[1720041226770,2.12106302,3281.2,3281.1,6.0955]
[1720041226971,2.58906005,3281.3,3281.2,3.04766]
[1720041227401,4.71008386,3281.3,3281.2,3.04766]
[1720041228703,3.71820882,3281.3,3281.2,6.09532]
[1720041229077,3.71820882,3281.3,3281.2,6.704852]
[1720041229277,3.71820882,3281.3,3281.2,9.704852]
[1720041229808,3.71820882,3281.3,3281.2,13.34181873]
[1720041230105,2.12102381,3281.3,3281.2,13.34181873]
[1720041230305,0.99187504,3281.7,3281.6,6.09458]
[1720041230700,0.99187504,3281.7,3281.6,6.13382677]
[1720041231517,0.99187504,3282.2,3282.1,3.04682]
[1720041231902,0.99187504,3282.2,3282.1,3.08596684]
[1720041232087,0.99187504,3282.2,3282.1,6.13278684]
[1720041233000,0.99187504,3282.2,3282.1,3.08596684]
[1720041233591,0.99187504,3282.2,3282.1,0.03914684]
[1720041233893,0.99187504,3282.0,3281.9,3.04701]
[1720041235013,3.11244861,3282.0,3281.9,3.04701]
[1720041235716,6.01844471,3282.0,3281.9,3.04701]
[1720041236289,3.61890901,3282.0,3281.9,3.04701]
[1720041236478,3.65375825,3282.0,3281.9,3.04701]
[1720041237089,6.0531244,3282.0,3281.9,3.04701]
[1720041237391,3.65375825,3282.0,3281.9,3.04701]
[1720041237600,3.14729785,3282.0,3281.9,3.04701]
[1720041237802,3.11244861,3282.0,3281.9,3.04701]
[1720041241092,3.11244861,3282.0,3281.5,3.04737]
[1720041241093,0.99187504,3281.7,3281.5,3.04737]
[1720041241300,1.31283033,3281.6,3281.5,3.04737]
[1720041241477,1.31283033,3281.6,3281.5,6.04737]
[1720041241674,3.39855466,3281.6,3281.5,6.04737]
[1720041242113,0.99187504,3281.4,3281.3,3.04753]
[1720041242483,4.70997102,3281.4,3281.3,3.04753]
[1720041242684,3.11244861,3281.4,3281.3,3.04753]
[1720041242985,3.11244861,3281.4,3280.9,3.0]
[1720041242986,0.99187504,3281.0,3280.9,3.04785]
[1720041243188,4.39067231,3281.0,3280.9,3.04785]
[1720041243392,2.12057357,3281.0,3280.9,3.04785]
[1720041243723,1.63262887,3281.1,3280.9,6.09574]
[1720041243885,3.11244861,3281.0,3280.9,6.09574]
[1720041244084,3.11244861,3281.0,3280.5,5.1906]
[1720041244085,2.12057357,3281.0,3280.7,6.09612]
[1720041244390,2.30494389,3280.9,3280.8,6.04803]
[1720041244589,2.30494389,3280.9,3280.8,6.08552419]
[1720041244590,3.39879318,3280.9,3280.8,6.08552419]
[1720041246223,2.15542281,3280.9,3280.8,6.08552419]
[1720041246429,1.27817418,3280.9,3280.8,6.08552419]
[1720041246690,0.03484924,3280.9,3280.8,3.03749419]
[1720041246854,1.63253497,3280.9,3280.8,6.08552419]
[1720041247061,1.27810472,3280.9,3280.8,6.08552419]
[1720041247215,3.39867829,3280.9,3280.8,6.08552419]
[1720041250047,2.12057357,3280.9,3280.8,6.08552419]
[1720041250542,2.12057357,3280.9,3280.8,9.13355419]
[1720041250944,3.39867829,3280.9,3280.8,9.13355419]
[1720041251141,2.12057357,3280.9,3280.8,9.13355419]
[1720041251529,3.39867829,3280.9,3280.8,9.13355419]
[1720041252054,3.39867829,3280.9,3280.8,3.08552419]
[1720041252218,2.12057357,3280.9,3280.8,3.08552419]
[1720041252420,3.71815861,3280.9,3280.8,3.08552419]
[1720041252600,4.22401121,3280.9,3280.8,0.03749419]
[1720041252806,4.22401121,3280.9,3280.4,3.04834]
[1720041252807,2.62642617,3280.9,3280.4,3.04834]
[1720041253113,0.99187504,3280.6,3280.5,3.0]
[1720041253441,2.6243706,3280.6,3280.3,3.04849]
[1720041253656,2.6243706,3280.6,3280.4,3.0]
[1720041253657,3.39854274,3280.5,3280.4,3.0]
[1720041253945,2.15542281,3280.5,3280.4,6.0484]
[1720041254516,0.99187504,3280.3,3280.2,3.04856]